fUST/lending_fUST_20240918
["ID","MTS","AMOUNT","RATE_DAILY","PERIOD"]
[338469519,1726671045554,-151.0,0.00019178,2]
[338469520,1726671045566,-500.0,0.00019178,2]
[338469521,1726671045578,-151.0,0.00019178,2]
[338469522,1726671045588,-151.0,0.00019178,2]
[338469523,1726671045599,-151.0,0.00019178,2]
[338469524,1726671045609,-1016.91,0.00019178,2]
[338469525,1726671045622,-500.0,0.00019178,2]
[338469526,1726671045633,-500.0,0.00019178,2]
[338469527,1726671045644,-500.0,0.00019178,2]
[338469528,1726671045654,-733.34,0.00019178,2]
[338469529,1726671045664,-512.28,0.00019178,2]
[338469530,1726671045674,-573.06,0.00019178,2]
[338469532,1726671045685,-1959.35,0.00019178,2]
[338469533,1726671045697,-500.0,0.00019178,2]
[338469534,1726671045708,-500.0,0.00019178,2]
[338469535,1726671045719,-500.0,0.00019178,2]
[338469536,1726671045729,-151.0,0.00019178,2]
[338469537,1726671045739,-720.68,0.00019178,2]
[338469538,1726671045749,-151.0,0.00019178,2]
[338469539,1726671045760,-151.0,0.00019178,2]
[338469540,1726671045772,-151.0,0.00019178,2]
[338469541,1726671045783,-151.0,0.00019178,2]
[338469542,1726671045794,-151.0,0.00019178,2]
[338469543,1726671045803,-535.58,0.00019178,2]
[338469544,1726671045814,-262.515348,0.00019178,2]
[338469545,1726671045826,-521.55,0.00019178,2]
[338469546,1726671045836,-650.14,0.00019178,2]
[338469547,1726671045848,-502.90992663,0.00019178,2]
[338469548,1726671045859,-3902.89,0.00019178,2]
[338469549,1726671045870,-500.0,0.00019178,2]
[338469551,1726671045881,-500.0,0.00019178,2]
[338469553,1726671045891,-500.0,0.00019178,2]
[338469555,1726671045903,-500.0,0.00019178,2]
[338469557,1726671045913,-500.0,0.00019178,2]
[338469558,1726671045924,-500.0,0.00019178,2]
[338469559,1726671045935,-500.0,0.00019178,2]
[338469560,1726671045945,-151.0,0.00019178,2]
[338469561,1726671045955,-500.0,0.00019178,2]
[338469562,1726671045966,-1062.75,0.00019178,2]
[338469563,1726671045976,-536.47,0.00019178,2]
[338469564,1726671045986,-500.0,0.00019178,2]
[338469565,1726671045995,-500.0,0.00019178,2]
[338469566,1726671046005,-500.0,0.00019178,2]
[338469567,1726671046014,-500.0,0.00019178,2]
[338469568,1726671046024,-500.0,0.00019178,2]
[338469569,1726671046034,-1553.59,0.00019178,2]
[338469570,1726671046044,-500.0,0.00019178,2]
[338469572,1726671046054,-223.49469264,0.00019178,2]
[338469573,1726671046064,-910.85,0.00019178,2]
[338469574,1726671046073,-500.0,0.00019178,2]
[338469575,1726671046083,-865.97,0.00019178,2]
[338469576,1726671046093,-500.0,0.00019178,2]
[338469577,1726671046103,-500.0,0.00019178,2]
[338469578,1726671046112,-1207.09,0.00019178,2]
[338469579,1726671046122,-500.0,0.00019178,2]
[338469580,1726671046133,-500.0,0.00019178,2]
[338469581,1726671046143,-569.48,0.00019178,2]
[338469582,1726671046152,-500.0,0.00019178,2]
[338469583,1726671046163,-500.0,0.00019178,2]
[338469584,1726671046172,-500.0,0.00019178,2]
[338469585,1726671046182,-500.0,0.00019178,2]
[338469586,1726671046192,-500.0,0.00019178,2]
[338469587,1726671046202,-500.0,0.00019178,2]
[338469588,1726671046212,-3730.69,0.00019178,2]
[338469589,1726671046221,-500.0,0.00019178,2]
[338469590,1726671046231,-500.0,0.00019178,2]
[338469591,1726671046241,-500.0,0.00019178,2]
[338469592,1726671046250,-546.17589861,0.00019178,2]
[338469593,1726671046260,-500.0,0.00019178,2]
[338469594,1726671046270,-500.0,0.00019178,2]
[338469595,1726671046282,-1073.87,0.00019178,2]
[338469596,1726671046292,-500.0,0.00019178,2]
[338469597,1726671046301,-500.0,0.00019178,2]
[338469598,1726671046312,-392.440812,0.00019178,2]
[338469599,1726671046321,-392.440812,0.00019178,2]
[338469600,1726671046331,-392.440812,0.00019178,2]
[338469601,1726671046340,-392.440812,0.00019178,2]
[338469602,1726671046350,-392.440812,0.00019178,2]
[338469603,1726671046485,-392.440812,0.00019178,2]
[338469604,1726671046508,-500.0,0.00019178,2]
[338469605,1726671046518,-392.440812,0.00019178,2]
[338469606,1726671046527,-612.46,0.00019178,2]
[338469607,1726671046537,-392.440812,0.00019178,2]
[338469608,1726671046546,-2386.8,0.00019178,2]
[338469609,1726671046556,-392.440812,0.00019178,2]
[338469610,1726671046565,-500.0,0.00019178,2]
[338469611,1726671046575,-392.440812,0.00019178,2]
[338469612,1726671046584,-392.440812,0.00019178,2]
[338469613,1726671046594,-392.440812,0.00019178,2]
[338469614,1726671046603,-392.440815,0.00019178,2]
[338469615,1726671046613,-1127.57,0.00019178,2]
[338469616,1726671046623,-2023.44,0.00019178,2]
[338469617,1726671046631,-500.0,0.00019178,2]
[338469618,1726671046640,-522.218121,0.00019178,2]
[338469619,1726671046650,-522.218121,0.00019178,2]
[338469620,1726671046659,-522.218121,0.00019178,2]
[338469621,1726671046668,-522.218121,0.00019178,2]
[338469622,1726671046678,-522.218121,0.00019178,2]
[338469623,1726671046687,-522.218121,0.00019178,2]
[338469624,1726671046696,-522.218121,0.00019178,2]
[338469625,1726671046705,-522.218121,0.00019178,2]
[338469626,1726671046715,-522.218121,0.00019178,2]
[338469627,1726671046724,-522.218121,0.00019178,2]
[338469628,1726671046734,-522.218121,0.00019178,2]
[338469629,1726671046743,-522.218121,0.00019178,2]
[338469630,1726671046752,-522.218121,0.00019178,2]
[338469631,1726671046761,-500.0,0.00019178,2]
[338469632,1726671046771,-634.12,0.00019178,2]
[338469633,1726671046780,-522.218121,0.00019178,2]
[338469634,1726671046789,-522.218121,0.00019178,2]
[338469635,1726671046798,-522.218121,0.00019178,2]
[338469636,1726671046807,-522.218116,0.00019178,2]
[338469637,1726671046817,-1957.22,0.00019178,2]
[338469638,1726671046826,-517.71783702,0.00019178,2]
[338469639,1726671046835,-500.0,0.00019178,2]
[338469640,1726671046846,-500.0,0.00019178,2]
[338469641,1726671046856,-4000.79,0.00019178,2]
[338469642,1726671046865,-839.44,0.00019178,2]
[338469643,1726671046874,-560.6,0.00019178,2]
[338469644,1726671046886,-277.20909129,0.00019178,2]
[338469645,1726671046896,-500.0,0.00019178,2]
[338469646,1726671046907,-500.0,0.00019178,2]
[338469647,1726671046917,-500.0,0.00019178,2]
[338469648,1726671046928,-1110.84,0.00019178,2]
[338469649,1726671046939,-500.0,0.00019178,2]
[338469650,1726671046950,-880.35,0.00019178,2]
[338469651,1726671046961,-500.0,0.00019178,2]
[338469652,1726671046971,-500.0,0.00019178,2]
[338469653,1726671046982,-500.0,0.00019178,2]
[338469654,1726671046993,-500.0,0.00019178,2]
[338469655,1726671047004,-500.0,0.00019178,2]
[338469656,1726671047013,-500.0,0.00019178,2]
[338469657,1726671047023,-706.68,0.00019178,2]
[338469658,1726671047032,-500.0,0.00019178,2]
[338469659,1726671047042,-500.0,0.00019178,2]
[338469660,1726671047053,-366.94056256,0.00019178,2]
[338469661,1726671047064,-1153.87,0.00019178,2]
[338469662,1726671047073,-500.0,0.00019178,2]
[338469663,1726671047084,-669.17,0.00019178,2]
[338469664,1726671047095,-2615.51,0.00019178,2]
[338469665,1726671047107,-500.0,0.00019178,2]
[338469666,1726671047118,-1170.86,0.00019178,2]
[338469667,1726671047129,-250.0,0.00019178,2]
[338469668,1726671047139,-1147.05,0.00019178,2]
[338469669,1726671047149,-1016.51,0.00019178,2]
[338469670,1726671047159,-1160.72,0.00019178,2]
[338469671,1726671047170,-309.0,0.00019178,2]
[338469672,1726671047181,-2301.74,0.00019178,2]
[338469673,1726671047193,-2123.17,0.00019178,2]
[338469674,1726671047205,-500.0,0.00019178,2]
[338469675,1726671047215,-500.0,0.00019178,2]
[338469676,1726671047225,-151.0,0.00019178,2]
[338469677,1726671047236,-151.0,0.00019178,2]
[338469678,1726671047246,-154.946537,0.00019178,2]
[338469679,1726671047257,-1085.51,0.00019178,2]
[338469680,1726671047268,-500.0,0.00019178,2]
[338469681,1726671047282,-500.0,0.00019178,2]
[338469682,1726671047293,-500.0,0.00019178,2]
[338469683,1726671047303,-500.0,0.00019178,2]
[338469684,1726671047313,-1305.23,0.00019178,2]
[338469685,1726671047323,-500.0,0.00019178,2]
[338469686,1726671047333,-500.0,0.00019178,2]
[338469687,1726671047343,-930.94,0.00019178,2]
[338469688,1726671047353,-500.0,0.00019178,2]
[338469689,1726671047364,-1126.74,0.00019178,2]
[338469690,1726671047376,-500.0,0.00019178,2]
[338469691,1726671047387,-2086.01,0.00019178,2]
[338469692,1726671047398,-500.0,0.00019178,2]
[338469693,1726671047408,-500.0,0.00019178,2]
[338469694,1726671047419,-500.0,0.00019178,2]
[338469695,1726671047429,-878.38,0.00019178,2]
[338469696,1726671047438,-500.0,0.00019178,2]
[338469697,1726671047449,-500.0,0.00019178,2]
[338469698,1726671047460,-3248.7,0.00019178,2]
[338469699,1726671047471,-500.0,0.00019178,2]
[338469700,1726671047480,-500.0,0.00019178,2]
[338469701,1726671047489,-500.0,0.00019178,2]
[338469702,1726671047499,-1082.32,0.00019178,2]
[338469703,1726671047508,-783.33,0.00019178,2]
[338469704,1726671047518,-555.56,0.00019178,2]
[338469705,1726671047527,-500.0,0.00019178,2]
[338469706,1726671047536,-500.0,0.00019178,2]
[338469707,1726671047546,-1747.74,0.00019178,2]
[338469708,1726671047555,-1055.6,0.00019178,2]
[338469709,1726671047565,-238.64164,0.00019178,2]
[338469710,1726671047574,-500.0,0.00019178,2]
[338469711,1726671047584,-238.64164,0.00019178,2]
[338469712,1726671047594,-238.64164,0.00019178,2]
[338469713,1726671047605,-500.0,0.00019178,2]
[338469714,1726671047616,-238.64164,0.00019178,2]
[338469715,1726671047626,-238.64164,0.00019178,2]
[338469716,1726671047637,-238.64164,0.00019178,2]
[338469717,1726671047647,-238.64164,0.00019178,2]
[338469718,1726671047657,-500.0,0.00019178,2]
[338469719,1726671047667,-238.64164,0.00019178,2]
[338469720,1726671047677,-238.64164,0.00019178,2]
[338469721,1726671047687,-238.64164,0.00019178,2]
[338469722,1726671047699,-238.64164,0.00019178,2]
[338469723,1726671047709,-238.64164,0.00019178,2]
[338469724,1726671047719,-238.64164,0.00019178,2]
[338469725,1726671047729,-238.64164,0.00019178,2]
[338469726,1726671047740,-238.64164,0.00019178,2]
[338469727,1726671047750,-238.64164,0.00019178,2]
[338469728,1726671047762,-585.0,0.00019178,2]
[338469729,1726671047774,-691.79,0.00019178,2]
[338469730,1726671047784,-238.64164,0.00019178,2]
[338469731,1726671047794,-500.0,0.00019178,2]
[338469732,1726671047805,-238.64164,0.00019178,2]
[338469733,1726671047817,-238.64164,0.00019178,2]
[338469734,1726671047827,-238.641633,0.00019178,2]
[338469735,1726671047838,-1036.53,0.00019178,2]
[338469736,1726671047847,-500.0,0.00019178,2]
[338469737,1726671047859,-2350.3,0.00019178,2]
[338469738,1726671047870,-151.0,0.00019178,2]
[338469739,1726671047881,-299.314941,0.00019178,2]
[338469740,1726671047892,-151.0,0.00019178,2]
[338469741,1726671047903,-151.0,0.00019178,2]
[338469742,1726671047914,-151.0,0.00019178,2]
[338469743,1726671047926,-151.0,0.00019178,2]
[338469744,1726671047937,-156.13626,0.00019178,2]
[338469745,1726671047946,-500.0,0.00019178,2]
[338469746,1726671047956,-721.45,0.00019178,2]
[338469747,1726671047966,-398.090378,0.00019178,2]
[338469748,1726671047976,-398.090378,0.00019178,2]
[338469749,1726671047987,-500.0,0.00019178,2]
[338469750,1726671047997,-500.0,0.00019178,2]
[338469751,1726671048006,-500.0,0.00019178,2]
[338469752,1726671048016,-2096.31,0.00019178,2]
[338469753,1726671048026,-500.0,0.00019178,2]
[338469754,1726671048036,-2499.55,0.00019178,2]
[338469755,1726671048047,-398.090378,0.00019178,2]
[338469756,1726671048058,-508.06,0.00019178,2]
[338469757,1726671048068,-398.090378,0.00019178,2]
[338469758,1726671048079,-398.090378,0.00019178,2]
[338469759,1726671048089,-219.85106024,0.00019178,2]
[338469760,1726671048099,-398.090378,0.00019178,2]
[338469761,1726671048109,-398.090378,0.00019178,2]
[338469762,1726671048119,-398.090378,0.00019178,2]
[338469763,1726671048129,-398.090378,0.00019178,2]
[338469764,1726671048139,-151.0,0.00019178,2]
[338469765,1726671048149,-398.090378,0.00019178,2]
[338469766,1726671048159,-151.0,0.00019178,2]
[338469767,1726671048169,-398.090378,0.00019178,2]
[338469768,1726671048180,-398.090378,0.00019178,2]
[338469769,1726671048190,-151.0,0.00019178,2]
[338469770,1726671048200,-398.090378,0.00019178,2]
[338469771,1726671048210,-151.0,0.00019178,2]
[338469772,1726671048221,-398.090378,0.00019178,2]
[338469773,1726671048231,-398.090378,0.00019178,2]
[338469774,1726671048242,-3212.62,0.00019178,2]
[338469775,1726671048251,-398.090378,0.00019178,2]
[338469776,1726671048261,-500.0,0.00019178,2]
[338469777,1726671048272,-398.090378,0.00019178,2]
[338469778,1726671048286,-398.090378,0.00019178,2]
[338469779,1726671048297,-398.090378,0.00019178,2]
[338469780,1726671048307,-500.0,0.00019178,2]
[338469781,1726671048317,-398.090377,0.00019178,2]
[338469782,1726671048327,-500.0,0.00019178,2]
[338469783,1726671048338,-500.0,0.00019178,2]
[338469784,1726671048348,-1420.41,0.00019178,2]
[338469785,1726671048360,-151.0,0.00019178,2]
[338469786,1726671048370,-500.0,0.00019178,2]
[338469787,1726671048381,-155.996601,0.00019178,2]
[338469788,1726671048391,-500.0,0.00019178,2]
[338469789,1726671048402,-500.0,0.00019178,2]
[338469790,1726671048412,-500.0,0.00019178,2]
[338469791,1726671048422,-500.0,0.00019178,2]
[338469792,1726671048432,-1927.47,0.00019178,2]
[338469793,1726671048442,-500.0,0.00019178,2]
[338469794,1726671048452,-500.0,0.00019178,2]
[338469795,1726671048463,-1063.26,0.00019178,2]
[338469796,1726671048473,-500.0,0.00019178,2]
[338469797,1726671048482,-151.0,0.00019178,2]
[338469798,1726671048492,-152.123845,0.00019178,2]
[338469799,1726671048502,-621.18,0.00019178,2]
[338469800,1726671048511,-1762.41,0.00019178,2]
[338469801,1726671048521,-500.0,0.00019178,2]
[338469802,1726671048532,-500.0,0.00019178,2]
[338469803,1726671048541,-2782.54,0.00019178,2]
[338469804,1726671048551,-2652.94,0.00019178,2]
[338469805,1726671048560,-500.0,0.00019178,2]
[338469806,1726671048571,-500.0,0.00019178,2]
[338469807,1726671048581,-676.12,0.00019178,2]
[338469808,1726671048590,-618.38,0.00019178,2]
[338469809,1726671048599,-500.0,0.00019178,2]
[338469810,1726671048609,-1344.5,0.00019178,2]
[338469811,1726671048619,-500.0,0.00019178,2]
[338469812,1726671048629,-683.24,0.00019178,2]
[338469813,1726671048638,-500.0,0.00019178,2]
[338469814,1726671048649,-500.0,0.00019178,2]
[338469815,1726671048795,-500.0,0.00019178,2]
[338469816,1726671048805,-670.63,0.00019178,2]
[338469817,1726671048815,-500.0,0.00019178,2]
[338469818,1726671048825,-1720.35,0.00019178,2]
[338469819,1726671048835,-643.35,0.00019178,2]
[338469820,1726671048845,-530.21,0.00019178,2]
[338469821,1726671048855,-173.587758,0.00019178,2]
[338469822,1726671048864,-173.587758,0.00019178,2]
[338469823,1726671048874,-500.0,0.00019178,2]
[338469824,1726671048884,-173.587758,0.00019178,2]
[338469825,1726671048894,-173.587758,0.00019178,2]
[338469826,1726671048903,-173.587758,0.00019178,2]
[338469827,1726671048912,-173.587758,0.00019178,2]
[338469828,1726671048922,-1136.79,0.00019178,2]
[338469829,1726671048932,-173.587758,0.00019178,2]
[338469830,1726671048941,-173.587758,0.00019178,2]
[338469831,1726671048951,-173.587758,0.00019178,2]
[338469832,1726671048960,-173.587758,0.00019178,2]
[338469833,1726671048969,-173.587758,0.00019178,2]
[338469834,1726671048979,-173.587758,0.00019178,2]
[338469835,1726671048988,-173.587758,0.00019178,2]
[338469836,1726671048998,-500.0,0.00019178,2]
[338469837,1726671049007,-587.04,0.00019178,2]
[338469838,1726671049016,-173.587758,0.00019178,2]
[338469839,1726671049026,-173.587758,0.00019178,2]
[338469840,1726671049035,-1390.71,0.00019178,2]
[338469841,1726671049045,-173.587758,0.00019178,2]
[338469842,1726671049054,-173.587758,0.00019178,2]
[338469843,1726671049064,-173.587758,0.00019178,2]
[338469844,1726671049073,-173.587758,0.00019178,2]
[338469845,1726671049082,-726.41,0.00019178,2]
[338469846,1726671049092,-173.587765,0.00019178,2]
[338469847,1726671049101,-500.0,0.00019178,2]
[338469848,1726671049112,-683.38,0.00019178,2]
[338469849,1726671049121,-823.0,0.00019178,2]
[338469850,1726671049130,-1107.4,0.00019178,2]
[338469851,1726671049140,-934.75,0.00019178,2]
[338469852,1726671049149,-500.0,0.00019178,2]
[338469853,1726671049158,-1152.16,0.00019178,2]
[338469854,1726671049168,-500.0,0.00019178,2]
[338469855,1726671049177,-1899.85,0.00019178,2]
[338469856,1726671049187,-513.42,0.00019178,2]
[338469857,1726671049197,-152.546196,0.00019178,2]
[338469858,1726671049206,-500.0,0.00019178,2]
[338469859,1726671049215,-500.0,0.00019178,2]
[338469860,1726671049225,-500.0,0.00019178,2]
[338469861,1726671049235,-500.0,0.00019178,2]
[338469862,1726671049244,-1029.93,0.00019178,2]
[338469863,1726671049254,-756.43,0.00019178,2]
[338469864,1726671049263,-500.0,0.00019178,2]
[338469865,1726671049274,-772.896991,0.00019178,2]
[338469866,1726671049286,-772.896991,0.00019178,2]
[338469867,1726671049295,-772.896991,0.00019178,2]
[338469868,1726671049304,-772.896991,0.00019178,2]
[338469869,1726671049313,-1783.73,0.00019178,2]
[338469870,1726671049322,-772.896991,0.00019178,2]
[338469871,1726671049331,-772.896991,0.00019178,2]
[338469872,1726671049340,-772.896991,0.00019178,2]
[338469873,1726671049350,-772.896991,0.00019178,2]
[338469874,1726671049359,-772.896991,0.00019178,2]
[338469875,1726671049369,-546.145174,0.00019178,2]
[338469876,1726671049378,-772.896991,0.00019178,2]
[338469877,1726671049387,-772.896991,0.00019178,2]
[338469878,1726671049397,-772.896991,0.00019178,2]
[338469879,1726671049406,-772.896991,0.00019178,2]
[338469880,1726671049415,-772.896991,0.00019178,2]
[338469881,1726671049424,-772.896991,0.00019178,2]
[338469882,1726671049434,-1227.51,0.00019178,2]
[338469883,1726671049444,-772.896991,0.00019178,2]
[338469884,1726671049454,-772.896991,0.00019178,2]
[338469885,1726671049463,-772.896991,0.00019178,2]
[338469886,1726671049472,-998.42,0.00019178,2]
[338469887,1726671049481,-1241.15,0.00019178,2]
[338469888,1726671049491,-500.0,0.00019178,2]
[338469889,1726671049500,-151.0,0.00019178,2]
[338469890,1726671049509,-151.0,0.00019178,2]
[338469891,1726671049519,-151.0,0.00019178,2]
[338469892,1726671049528,-772.896991,0.00019178,2]
[338469893,1726671049537,-151.0,0.00019178,2]
[338469894,1726671049547,-772.896989,0.00019178,2]
[338469895,1726671049556,-390.46,0.00019178,2]
[338469896,1726671049566,-151.0,0.00019178,2]
[338469897,1726671049576,-151.0,0.00019178,2]
[338469898,1726671049586,-500.0,0.00019178,2]
[338469899,1726671049596,-151.0,0.00019178,2]
[338469900,1726671049605,-151.0,0.00019178,2]
[338469901,1726671049615,-500.0,0.00019178,2]
[338469902,1726671049625,-151.0,0.00019178,2]
[338469903,1726671049635,-1389.34,0.00019178,2]
[338469904,1726671049646,-151.0,0.00019178,2]
[338469905,1726671049657,-151.0,0.00019178,2]
[338469906,1726671049666,-151.0,0.00019178,2]
[338469907,1726671049676,-151.0,0.00019178,2]
[338469908,1726671049685,-151.0,0.00019178,2]
[338469909,1726671049694,-642.72,0.00019178,2]
[338469910,1726671049704,-1634.95,0.00019178,2]
[338469911,1726671049714,-151.0,0.00019178,2]
[338469912,1726671049724,-151.0,0.00019178,2]
[338469913,1726671049734,-151.0,0.00019178,2]
[338469914,1726671049744,-151.0,0.00019178,2]
[338469915,1726671049755,-500.0,0.00019178,2]
[338469916,1726671049765,-151.0,0.00019178,2]
[338469917,1726671049777,-151.0,0.00019178,2]
[338469918,1726671049786,-151.0,0.00019178,2]
[338469919,1726671049796,-151.0,0.00019178,2]
[338469920,1726671049806,-1830.33,0.00019178,2]
[338469921,1726671049817,-151.0,0.00019178,2]
[338469922,1726671049828,-151.0,0.00019178,2]
[338469923,1726671049838,-151.0,0.00019178,2]
[338469924,1726671049849,-1096.08,0.00019178,2]
[338469925,1726671049860,-151.0,0.00019178,2]
[338469926,1726671049869,-163.799477,0.00019178,2]
[338469927,1726671049880,-530.64,0.00019178,2]
[338469928,1726671049891,-151.0,0.00019178,2]
[338469929,1726671049902,-500.0,0.00019178,2]
[338469930,1726671049912,-595.67,0.00019178,2]
[338469931,1726671049923,-500.0,0.00019178,2]
[338469932,1726671049932,-500.0,0.00019178,2]
[338469933,1726671049942,-500.0,0.00019178,2]
[338469934,1726671049952,-1429.26,0.00019178,2]
[338469935,1726671049961,-513.79137478,0.00019178,2]
[338469936,1726671049970,-1365.32,0.00019178,2]
[338469937,1726671049980,-500.0,0.00019178,2]
[338469938,1726671049991,-600.93,0.00019178,2]
[338469939,1726671050003,-1347.2,0.00019178,2]
[338469940,1726671050014,-500.0,0.00019178,2]
[338469941,1726671050024,-1535.4,0.00019178,2]
[338469942,1726671050036,-500.0,0.00019178,2]
[338469943,1726671050046,-500.0,0.00019178,2]
[338469944,1726671050057,-500.0,0.00019178,2]
[338469945,1726671050067,-500.0,0.00019178,2]
[338469946,1726671050077,-1696.49,0.00019178,2]
[338469947,1726671050087,-1324.37,0.00019178,2]
[338469948,1726671050096,-1683.54,0.00019178,2]
[338469949,1726671050107,-1736.31,0.00019178,2]
[338469950,1726671050117,-500.0,0.00019178,2]
[338469951,1726671050128,-666.8,0.00019178,2]
[338469952,1726671050140,-386.426943,0.00019178,2]
[338469953,1726671050150,-386.426943,0.00019178,2]
[338469954,1726671050161,-386.426943,0.00019178,2]
[338469955,1726671050171,-386.426943,0.00019178,2]
[338469956,1726671050181,-1625.64,0.00019178,2]
[338469957,1726671050191,-386.426943,0.00019178,2]
[338469958,1726671050201,-500.0,0.00019178,2]
[338469959,1726671050211,-386.426943,0.00019178,2]
[338469960,1726671050221,-514.86769866,0.00019178,2]
[338469961,1726671050231,-546.67,0.00019178,2]
[338469962,1726671050241,-386.426943,0.00019178,2]
[338469963,1726671050253,-386.426943,0.00019178,2]
[338469964,1726671050263,-386.426943,0.00019178,2]
[338469965,1726671050274,-1419.67,0.00019178,2]
[338469966,1726671050285,-386.426943,0.00019178,2]
[338469967,1726671050297,-386.426943,0.00019178,2]
[338469968,1726671050315,-1798.18,0.00019178,2]
[338469969,1726671050324,-386.426943,0.00019178,2]
[338469970,1726671050334,-386.426943,0.00019178,2]
[338469971,1726671050345,-1168.28,0.00019178,2]
[338469972,1726671050359,-386.426943,0.00019178,2]
[338469973,1726671050368,-1179.45,0.00019178,2]
[338469974,1726671050378,-386.426943,0.00019178,2]
[338469975,1726671050387,-500.0,0.00019178,2]
[338469976,1726671050399,-386.426943,0.00019178,2]
[338469977,1726671050409,-386.426943,0.00019178,2]
[338469978,1726671050418,-386.426943,0.00019178,2]
[338469979,1726671050430,-500.0,0.00019178,2]
[338469980,1726671050442,-1719.33,0.00019178,2]
[338469981,1726671050453,-851.1,0.00019178,2]
[338469982,1726671050463,-500.0,0.00019178,2]
[338469983,1726671050472,-500.0,0.00019178,2]
[338469984,1726671050481,-576.68,0.00019178,2]
[338469985,1726671050490,-500.0,0.00019178,2]
[338469986,1726671050499,-500.0,0.00019178,2]
[338469987,1726671050509,-1346.11,0.00019178,2]
[338469988,1726671050518,-500.0,0.00019178,2]
[338469989,1726671050528,-646.63566128,0.00019178,2]
[338469990,1726671050537,-1232.52,0.00019178,2]
[338469991,1726671050546,-390.38437168,0.00019178,2]
[338469992,1726671050557,-1680.38,0.00019178,2]
[338469993,1726671050568,-747.27,0.00019178,2]
[338469994,1726671050577,-500.0,0.00019178,2]
[338469995,1726671050586,-500.0,0.00019178,2]
[338469996,1726671050595,-4842.88,0.00019178,2]
[338469997,1726671050605,-500.0,0.00019178,2]
[338469998,1726671050614,-4842.88,0.00019178,2]
[338469999,1726671050623,-4842.88,0.00019178,2]
[338470000,1726671050633,-4842.88,0.00019178,2]
[338470001,1726671050642,-4842.88,0.00019178,2]
[338470002,1726671050651,-4842.88,0.00019178,2]
[338470003,1726671050660,-4842.88,0.00019178,2]
[338470004,1726671050669,-4842.88,0.00019178,2]
[338470005,1726671050678,-4842.88,0.00019178,2]
[338470006,1726671050688,-4842.88,0.00019178,2]
[338470007,1726671050696,-500.0,0.00019178,2]
[338470008,1726671050706,-500.0,0.00019178,2]
[338470009,1726671050715,-4842.88,0.00019178,2]
[338470010,1726671050848,-4842.88,0.00019178,2]
[338470011,1726671050860,-500.0,0.00019178,2]
[338470012,1726671050869,-4842.88,0.00019178,2]
[338470013,1726671050879,-3393.93682305,0.00019178,2]
[338470014,1726671052532,-1448.94317695,0.00019178,2]
[338470015,1726671052542,-4842.88,0.00019178,2]
[338470016,1726671052560,-925.4,0.00019178,2]
[338470017,1726671052570,-2485.97882305,0.00019178,2]
[338470039,1726672232189,-3000.0,0.00017547,2]
[338470041,1726672232198,-164.718179,0.00017595,2]
[338470043,1726672232207,-164.718179,0.00017778,2]
[338470045,1726672232217,-164.718179,0.00017961,2]
[338470047,1726672232226,-164.718179,0.00018145,2]
[338470049,1726672232236,-160.420803,0.00018157,2]
[338470051,1726672232245,-160.420803,0.00018166,2]